[Event "89_| Campeonato Brasileiro 2023"]
[Site "Recife"]
[Date "2023.12.16"]
[Round "5.6"]
[White "Molina, Roberto Junio Brito"]
[Black "Piccoli, Lucas Fonseca"]
[Result "1-0"]
[ECO "D40"]
[WhiteElo "2381"]
[BlackElo "2244"]
[PlyCount "127"]
[EventDate "2023.??.??"]
[EventCountry "BRA"]
[TimeControl "90+30"]
[WhiteClock "0:09:14"]
[BlackClock "0:04:59"]

{[%evp 23,127,32,46,36,34,35,39,22,30,0,3,10,13,-97,0,-28,0,0,0,-10,0,-1,0,-1,
-2,-2,-1,-1,0,0,0,0,13,-3,53,58,92,97,152,164,146,159,159,162,114,6,483,464,
475,475,472,468,468,446,500,500,499,498,470,453,503,502,500,500,486,472,493,
494,648,648,648,648,648,648,613,625,9605,9605,9605,3653,20000,20000,20000,
20000,20000,20000,20000,20000,9605,9605,9605,9605,9605,3403,3463,3408,3600,
3612,29981,29982,29982,29983,29982,29983,29981,29982]} 1. d4 {[%emt 0:00:00]}
d5 {[%emt 0:00:00]} 2. c4 {[%emt 0:00:00]} e6 {[%emt 0:00:00]} 3. Nc3 {[%emt 0:
00:00]} c5 {[%emt 0:00:00]} 4. e3 {[%emt 0:00:00]} Nf6 {[%emt 0:00:00]} 5. Nf3
{[%emt 0:00:00]} a6 {[%emt 0:00:00]} 6. cxd5 {[%emt 0:00:00]} exd5 {[%emt 0:00:
00]} 7. Be2 {[%emt 0:00:00]} Nc6 {[%emt 0:00:00]} 8. O-O {[%emt 0:00:00]} Bd6 {
[%emt 0:00:00]} 9. dxc5 {[%emt 0:00:00]} Bxc5 {[%emt 0:00:00]} 10. a3 {[%emt 0:
00:00]} O-O {[%emt 0:00:00]} 11. b4 {[%emt 0:00:00]} Bd6 {[%emt 0:00:00]} 12.
Bb2 {[%emt 0:00:00]} Bg4 {[%emt 0:00:00]} 13. Nd4 {[%emt 0:00:00] D40: Queen's
Gambit Declined: Semi-Tarrasch with 5 e3.} Bd7 {[%emt 0:00:00]} 14. Rc1 {
[%emt 0:00:00]} Re8 {[%emt 0:00:00]} 15. Bf3 {[%emt 0:00:00] White is slightly
better.} Qe7 $146 {[%emt 0:00:00]} ({Predecessor:} 15... Nxd4 16. Qxd4 Be5 17.
Qd2 Bg4 18. Qd1 Qd7 19. Bxg4 Nxg4 {0-1 (39) Leshchenok,S (2185)-Korneev,O 
(2560) Minsk 1998}) 16. g3 {[%emt 0:00:00]} Nxd4 {[%emt 0:00:00]} 17. Qxd4 {
[%emt 0:00:00]} Be5 {[%emt 0:00:00]} 18. Qh4 {[%eval -97,23] [%emt 0:00:00]} (
18. Nxd5 $11 {[%eval 13,32] remains equal.} Nxd5 19. Qxd5) 18... Bc6 {[%eval 0,
30] [%emt 0:00:00]} (18... Qe6 $1 $17 {[%eval -97,23]}) 19. Bg2 {[%emt 0:00:00]
} Rad8 {[%emt 0:00:00]} 20. Rfe1 {[%emt 0:00:00]} h6 {[%emt 0:00:00]} 21. Nd1 {
[%emt 0:00:00]} Kh7 {[%emt 0:01:44] Hoping for ...g5.} 22. Bxe5 {[%emt 0:00:19]
} Qxe5 {[%emt 0:00:01]} 23. Qf4 $1 {[%emt 0:01:07]} Qxf4 {[%emt 0:02:29]} 24.
gxf4 {[%emt 0:00:01]} Ne4 {[%emt 0:00:07]} 25. Nb2 {[%emt 0:02:12]} d4 {
[%emt 0:00:33]} 26. exd4 {[%emt 0:02:19]} Rxd4 {[%emt 0:00:02]} 27. Nc4 {
[%emt 0:04:06]} g5 {[%emt 0:02:06]} 28. fxg5 {[%emt 0:01:01]} Rg8 {[%eval 53,
29] [%emt 0:04:59]} (28... hxg5 $11 {[%eval -3,36]} 29. h3 Kg7) 29. Ne5 $14 {
[%emt 0:02:22]} Nxg5 {[%emt 0:01:15]} 30. Nxc6 {[%emt 0:01:44]} Nf3+ {[%emt 0:
01:56]} 31. Kh1 {[%emt 0:00:24]} Rxg2 {[%emt 0:01:01]} 32. Kxg2 {[%emt 0:00:13]
} Nxe1+ {[%emt 0:00:11]} 33. Rxe1 {[%emt 0:00:01]} bxc6 $18 {[%emt 0:00:01]
[%mdl 4096] Endgame [#] KR-KR} 34. Re7 {[%eval 6,55] [%emt 0:00:39]} (34. Re5
$1 $16 {[%eval 114,26]}) 34... Rd3 $2 {[%eval 483,25] [%emt 0:00:42][%mdl 8192]
} (34... a5 $11 {[%eval 6,55]}) 35. Rxf7+ {[%emt 0:00:07]} Kg6 {[%emt 0:00:00]
[#]} 36. Rf3 $1 {[%emt 0:00:12][%cal Rf3d3]} Rd6 {[%emt 0:01:49]} 37. Rc3 {
[%emt 0:00:02]} Kf5 {[%emt 0:00:28]} 38. Kf3 {[%emt 0:00:57]} Ke6 {[%emt 0:00:
31]} 39. Ke4 {[%emt 0:00:06]} Ke7 {[%emt 0:00:29]} 40. Rc5 {[%emt 0:00:33]} Kd7
{[%emt 0:00:32]} 41. Ra5 {[%emt 0:00:35]} Re6+ {[%emt 0:00:12]} 42. Kf3 {
[%emt 0:00:34]} Rf6+ {[%emt 0:00:29]} 43. Kg2 {[%emt 0:00:01]} Rg6+ {[%emt 0:
00:06]} 44. Kf1 {[%emt 0:00:08]} Kc7 {[%emt 0:01:14]} 45. Rxa6 {[%emt 0:00:13]}
Kb7 {[%emt 0:00:27] [#]} 46. b5 $1 {[%emt 0:00:15]} Rg5 {[%emt 0:00:31]} (46...
cxb5 47. Rxg6) 47. Rxc6 {[%emt 0:00:02]} Rxb5 {[%emt 0:00:11]} 48. Rxh6 {
[%emt 0:00:08]} Ra5 {[%emt 0:00:13]} 49. Rh3 {[%emt 0:00:10]} Ra4 {[%emt 0:00:
17]} 50. Rc3 {[%emt 0:00:07]} Kb6 {[%emt 0:00:37]} 51. h3 {[%emt 0:00:27]} Kb5
{[%emt 0:00:13]} 52. Kg2 {[%emt 0:00:08]} Ra7 {[%emt 0:00:08]} 53. h4 {[%emt 0:
00:21]} Rg7+ {[%emt 0:00:10]} 54. Kh3 {[%emt 0:00:29]} Rf7 {[%emt 0:00:11]} 55.
f3 {[%emt 0:00:13]} Rh7 {[%emt 0:00:15]} 56. f4 {[%emt 0:00:08]} Rf7 {[%emt 0:
00:06]} 57. Kg4 {[%emt 0:00:05]} Rg7+ {[%emt 0:00:06]} 58. Kf5 {[%emt 0:00:10]}
Rf7+ {[%emt 0:00:09]} 59. Ke5 {[%emt 0:00:18]} Rh7 {[%emt 0:00:12]} 60. f5 {
[%emt 0:00:32]} Rxh4 {[%emt 0:00:04]} 61. f6 {[%emt 0:00:11] White mates.} Rh5+
{[%emt 0:00:03]} 62. Ke6 {[%emt 0:00:10]} Rh6 {[%emt 0:00:47]} 63. Ke7 {
[%emt 0:00:12]} Rh2 {[%emt 0:00:24]} 64. Re3 {[%emt 0:00:14] Accuracy: White =
73%, Black = 57%.} 1-0

[Event "89_| Campeonato Brasileiro 2023"]
[Site "Recife"]
[Date "2023.12.16"]
[Round "5.7"]
[White "De Siqueira, Luigy Lira"]
[Black "Lima, Darcy Gustavo Macha"]
[Result "1-0"]
[ECO "B07"]
[WhiteElo "2202"]
[BlackElo "2377"]
[PlyCount "87"]
[EventDate "2023.??.??"]
[EventCountry "BRA"]
[TimeControl "90+30"]
[WhiteClock "0:06:48"]
[BlackClock "0:04:42"]

{[%evp 18,87,19,19,23,22,32,36,30,33,38,30,52,21,73,44,117,112,120,115,214,207,
193,144,171,166,311,265,262,232,239,198,261,163,160,150,149,145,208,159,237,
221,226,217,212,213,196,175,231,191,157,159,382,382,383,383,402,413,473,466,
514,499,511,490,580,583,567,565,544,557,592,596]} 1. e4 {[%emt 0:00:00]} d6 {
[%emt 0:00:00]} 2. d4 {[%emt 0:00:00]} Nf6 {[%emt 0:00:00]} 3. Nc3 {[%emt 0:00:
00]} g6 {[%emt 0:00:00]} 4. g3 {[%emt 0:00:00]} Bg7 {[%emt 0:00:00]} 5. Bg2 {
[%emt 0:00:00]} O-O {[%emt 0:00:00]} 6. Nge2 {[%emt 0:00:00]} e5 {[%emt 0:00:
00]} 7. O-O {[%emt 0:00:00]} Nc6 {[%emt 0:00:00]} 8. dxe5 {[%emt 0:00:00]} dxe5
{[%emt 0:00:00]} 9. Bg5 {[%emt 0:00:00]} Qxd1 {[%emt 0:00:00]} 10. Raxd1 {
[%emt 0:00:00]} h6 {[%emt 0:00:00] B07: Pirc Defence: Miscellaneous Systems.}
11. Be3 {[%emt 0:00:00]} Rd8 {[%emt 0:00:00]} 12. Rxd8+ {[%emt 0:00:00]} Nxd8 {
[%emt 0:00:00] White is slightly better.} 13. Rd1 {[%emt 0:00:00]} Bd7 $146 {
[%emt 0:00:00]} ({Predecessor:} 13... Ne6 14. Nd5 h5 15. Ne7+ Kf8 16. Nxc8 Rxc8
17. f3 a6 18. h4 Ke7 19. Bh3 Rh8 {1-0 (60) Gustafsson,J (2628)-Kollars,D (2491)
Germany 2017}) 14. h3 {[%emt 0:00:00]} a6 {[%emt 0:00:00]} 15. Nc1 {[%emt 0:00:
00]} Be8 {[%eval 73,23] [%emt 0:00:00]} (15... Nc6 $11 {[%eval 21,30] remains
equal.}) 16. Nb3 {[%emt 0:00:00]} Nd7 {[%eval 117,26] [%emt 0:00:00]} (16...
Ne6 $14 {[%eval 44,27]}) 17. Nd5 $36 {[%emt 0:00:25][%mdl 2048] White has
strong initiative.} Ne6 {[%emt 0:00:00]} 18. h4 $1 {[%emt 0:00:00]} Bf8 {
[%eval 214,27] [%emt 0:00:00] [#]} (18... Kh8 $16 {[%eval 115,29]}) 19. Bh3 $1
$18 {[%emt 0:00:00][%cal Rh3e6]} Rc8 {[%emt 0:00:00]} 20. Bxh6 {[%eval 144,30]
[%emt 0:00:00]} ({White should try} 20. Na5 $18 {[%eval 193,29]}) 20... c6 $16
{[%emt 0:00:00]} 21. Bxf8 {[%emt 0:00:00] Strongly threatening Ne7+.} Kxf8 {
[%eval 311,27] [%emt 0:00:00]} (21... cxd5 $142 {[%eval 166,32]} 22. Ba3 d4)
22. Ne3 {[%emt 0:05:31]} Ke7 {[%emt 0:08:28]} 23. Nc4 {[%emt 0:00:38]} Rc7 {
[%emt 0:00:26]} 24. Nd6 {[%emt 0:00:56]} Ndc5 {[%eval 261,28] [%emt 0:01:36]} (
24... Ndf8 {[%eval 198,27] was necessary.} 25. Nc4 f6) 25. Nxe8 {[%emt 0:01:25]
} Kxe8 {[%emt 0:00:04]} 26. Nxc5 {[%emt 0:00:27]} Nxc5 $18 {[%emt 0:00:01]
[%mdl 4096] Endgame KRB-KRN} 27. f3 {[%emt 0:00:01]} Ke7 {[%eval 208,26] [%emt
0:00:02]} (27... Na4 $16 {[%eval 145,29]}) 28. Kf2 {[%emt 0:00:16]} b5 {
[%eval 237,31] [%emt 0:00:10]} (28... Na4 $16 {[%eval 159,28]}) 29. Ke3 {
[%emt 0:00:16]} a5 {[%emt 0:00:21]} 30. f4 {[%emt 0:00:30]} Na4 {[%emt 0:00:30]
} 31. b3 {[%emt 0:00:30]} ({Don't do} 31. fxe5 $6 Nxb2 32. Rh1 Rb7 $16) 31...
Nc3 {[%emt 0:00:30] [#]} 32. Ra1 $1 {[%emt 0:00:30]} Kd6 {[%eval 231,33] [%emt
0:00:30]} (32... exf4+ {[%eval 175,26] was called for.} 33. gxf4 a4) 33. Kd3 {
[%emt 0:00:30]} b4 {[%emt 0:00:30]} 34. a3 {[%emt 0:00:30]} Re7 $2 {[%eval 382,
28] [%emt 0:00:30]} (34... exf4 $16 {[%eval 159,31] was worth a try.} 35. axb4
(35. gxf4 Re7 $16) 35... axb4) 35. axb4 {[%emt 0:00:30]} axb4 {[%emt 0:00:30] .
..exf4 would now be nice for Black.} 36. f5 {[%emt 0:00:06]} Kc5 {[%emt 0:00:
20]} 37. f6 {[%emt 0:02:03]} Rb7 {[%emt 0:01:12]} 38. Ra8 {[%emt 0:00:06]
White is clearly winning.} Nb5 {[%emt 0:00:57]} 39. Re8 {[%emt 0:00:13]} Kd6 {
[%emt 0:00:03]} 40. g4 {[%emt 0:00:08] h5 is the strong threat.} Ra7 {[%emt 0:
00:08]} 41. h5 {[%emt 0:00:04]} gxh5 {[%emt 0:00:30]} 42. gxh5 {[%emt 0:00:56]
Threatens to win with h6.} Ra1 {[%emt 0:00:30]} 43. Bg2 {[%emt 0:00:30] And
now h6 would win.} Rg1 {[%emt 0:00:30]} 44. Rg8 {[%emt 0:00:00] Accuracy:
White = 82%, Black = 41%.} 1-0

[Event "89_| Campeonato Brasileiro 2023"]
[Site "Recife"]
[Date "2023.12.16"]
[Round "5.8"]
[White "Do Valle Cardoso, Lucas"]
[Black "Patroclo, Arthur Ruiz"]
[Result "1-0"]
[ECO "B06"]
[WhiteElo "2352"]
[BlackElo "2101"]
[PlyCount "85"]
[EventDate "2023.??.??"]
[EventCountry "BRA"]
[TimeControl "90+30"]
[WhiteClock "0:41:13"]
[BlackClock "0:01:05"]

{[%evp 15,85,74,74,64,84,41,57,32,53,30,29,34,32,18,24,14,13,-2,0,2,8,0,19,21,
39,16,72,56,126,113,90,102,191,22,27,22,24,18,34,30,30,25,25,34,88,89,99,91,
121,101,91,41,291,292,540,448,546,399,655,658,662,651,664,635,29986,29987,
29988,29989,29990,29991,29991,29991]} 1. e4 {[%emt 0:00:00]} g6 {[%emt 0:00:00]
} 2. d4 {[%emt 0:00:00]} Bg7 {[%emt 0:00:00]} 3. Nc3 {[%emt 0:00:00]} d6 {
[%emt 0:00:00]} 4. Be3 {[%emt 0:00:00]} a6 {[%emt 0:00:00]} 5. Qd2 {[%emt 0:00:
00]} b5 {[%emt 0:00:00]} 6. h4 {[%emt 0:00:00]} h5 {[%emt 0:00:00]} 7. f3 {
[%emt 0:00:00]} Bb7 {[%emt 0:00:00]} 8. Nh3 {[%emt 0:00:00]} Nd7 {[%emt 0:00:
00]} 9. Ng5 {[%emt 0:00:00] B06: Modern Defence.} Ngf6 {[%emt 0:00:00]} 10. a4
{[%emt 0:00:00]} c6 {[%emt 0:00:00]} 11. Bd3 {[%emt 0:00:00] White is slightly
better.} e5 {[%emt 0:00:00]} 12. O-O {[%emt 0:00:00]} O-O {[%emt 0:00:00]} 13.
axb5 {[%emt 0:00:00]} axb5 {[%emt 0:00:00]} 14. Ne2 $146 {[%emt 0:00:00]} ({
Predecessor:} 14. dxe5 Nxe5 15. Be2 b4 16. Na4 c5 17. b3 Qc7 18. Rad1 Rad8 19.
Qe1 Nh7 20. Nxh7 Kxh7 {1-0 (40) Asis Gargatagli,H (2479)-Starozhilov,L (2318)
Chess.com INT 2020}) 14... exd4 {[%emt 0:00:00]} 15. Nxd4 {[%emt 0:00:00]} Re8
{[%emt 0:00:00]} 16. c4 {[%emt 0:00:00]} bxc4 {[%emt 0:00:00]} 17. Bxc4 {
[%emt 0:00:00]} d5 {[%emt 0:00:00]} 18. exd5 {[%emt 0:00:00]} cxd5 {[%emt 0:00:
00]} 19. Bb5 {[%emt 0:00:00]} Qe7 {[%emt 0:00:00]} 20. Bf2 {[%emt 0:00:00]}
Rxa1 {[%eval 72,26] [%emt 0:00:00]} (20... Qd6 $11 {[%eval 16,27]}) 21. Rxa1
$16 {[%emt 0:00:00]} Ra8 {[%eval 126,23] [%emt 0:00:00]} (21... Qd6 $14 {
[%eval 56,27]}) 22. Rxa8+ {[%emt 0:00:00]} Bxa8 {[%emt 0:00:00]} 23. Qa5 {
[%emt 0:00:00]} Qf8 {[%eval 191,25] [%emt 0:00:00] [#]} (23... Qe8 $16 {
[%eval 102,27]}) 24. Qc7 $2 {[%eval 22,30] [%emt 0:00:00]} ({White must play} 
24. Qa6 $1 $18 {[%eval 191,25]}) 24... Qb8 $11 {[%emt 0:00:00]} 25. Qxb8+ {
[%emt 0:00:00]} Nxb8 {[%emt 0:00:00]} 26. Kf1 {[%emt 0:00:00]} Nbd7 {[%emt 0:
00:00]} 27. b4 {[%emt 0:00:00]} Bf8 {[%emt 0:00:00]} 28. Bc6 $36 {[%emt 0:00:
00][%mdl 2048] White is pushing.} Nb6 {[%emt 0:00:30]} 29. b5 {[%emt 0:00:00]}
Bc5 {[%emt 0:00:30]} 30. Bxa8 {[%emt 0:00:00]} Nxa8 {[%emt 0:00:30]} 31. Nc6 {
[%emt 0:00:00]} Bxf2 {[%emt 0:13:36]} 32. Kxf2 $16 {[%emt 0:00:00][%mdl 4096]
Endgame KNN-KNN} Kf8 {[%emt 0:00:30]} 33. Ne5 {[%emt 0:00:00]} Nb6 $2 {[%eval
291,29] [%emt 0:00:30]} ({Better is} 33... Ne8 $1 $14 {[%eval 41,32]}) 34.
Ngxf7 $18 {[%emt 0:00:00]} Nfd7 $2 {[%eval 540,25] [%emt 0:01:25]} (34... Ne8 {
[%eval 292,31] was worth a try.} 35. Nh8 Kg7 36. Nhxg6 Kf6) 35. Ke3 {[%emt 0:
00:00]} Ke7 {[%emt 0:00:24]} 36. Kd4 {[%emt 0:00:00]} Nxe5 $2 {[%eval 655,26] 
[%emt 0:00:30]} (36... Nf8 {[%eval 399,29]} 37. Ng5 Kd6) 37. Nxe5 {[%emt 0:00:
00] KN-KN} Kf6 {[%emt 0:00:30]} 38. Nd3 {[%emt 0:00:00]} g5 {[%emt 0:00:30]}
39. Nb4 {[%emt 0:00:00]} gxh4 {[%emt 0:00:30]} 40. Nxd5+ {[%emt 0:00:00][%mdl
64] [#] Double Attack. White mates.} Kf5 {[%emt 0:00:30]} 41. Nxb6 {[%emt 0:00:
00]} Kf4 {[%emt 0:00:30]} 42. Nd5+ {[%emt 0:00:00]} Kg3 {[%emt 0:00:30]} 43.
Ne3 {[%emt 0:00:00] Accuracy: White = 63%, Black = 37%.} 1-0

[Event "89_| Campeonato Brasileiro 2023"]
[Site "Recife"]
[Date "2023.12.16"]
[Round "6.1"]
[White "Supi, Luis Paulo"]
[Black "Fier, Alexandr"]
[Result "1/2-1/2"]
[ECO "B30"]
[WhiteElo "2579"]
[BlackElo "2545"]
[PlyCount "27"]
[EventDate "2023.??.??"]
[EventCountry "BRA"]
[TimeControl "90+30"]
[WhiteClock "0:56:07"]
[BlackClock "1:09:18"]

{[%evp 9,27,1,7,-16,-13,-11,-5,-4,-5,-17,-12,-19,-15,-35,-31,-26,-13,-44,-13,
-28]} 1. e4 {[%emt 0:00:00]} c5 {[%emt 0:00:00]} 2. Nf3 {[%emt 0:00:00]} Nc6 {
[%emt 0:00:00]} 3. h3 {[%emt 0:00:00]} g6 {[%emt 0:00:00]} 4. Bc4 {[%emt 0:00:
00]} Bg7 {[%emt 0:00:00]} 5. O-O {[%emt 0:00:00]} e6 {[%emt 0:00:00]} 6. Bb5 {
[%emt 0:00:00] B30: Sicilian: 2...Nc6 3 Bb5, lines without ...g6.} Nge7 {
[%emt 0:00:00]} 7. c3 {[%emt 0:00:00]} e5 {[%emt 0:00:00]} 8. d3 {[%emt 0:00:
00]} O-O {[%emt 0:00:00]} 9. Be3 {[%emt 0:00:00]} d6 {[%emt 0:00:00]} 10. a4 {
[%emt 0:00:00]} h6 {[%emt 0:00:00]} 11. Na3 $146 {[%emt 0:00:00]} ({
Predecessor:} 11. d4 cxd4 12. cxd4 exd4 13. Nxd4 d5 14. exd5 {[%eval -82,26]} (
14. Bxc6 $11 {[%eval 0,32]} Nxc6 15. exd5 Nxd4 16. Bxd4) 14... Nxd5 15. Bxc6 {
[%eval -158,27]} (15. Nxc6 $142 {[%eval -75,27]} bxc6 16. Bxc6 Nxe3 {[%mdl 64]
Discovered Attack} 17. fxe3) 15... Nxe3 16. fxe3 bxc6 17. Nc3 c5 18. Ndb5 {
0-1 (63) Kozelov,R (2104)-Wang,T (2402) Saint Louis 2022}) ({Predecessor:} 11.
d4 cxd4 12. cxd4 exd4 13. Nxd4 d5 14. exd5 Nxd5 15. Bxc6 Nxe3 16. fxe3 bxc6 17.
Nc3 c5 18. Ndb5 {0-1 (63) Kozelov,R (2104)-Wang,T (2402) Saint Louis 2022})
11... f5 {[%emt 0:00:00]} 12. b4 {[%emt 0:00:00]} f4 {[%emt 0:00:00]} 13. Bd2 {
[%emt 0:00:00]} Kh7 {[%emt 0:00:00]} 14. bxc5 {[%emt 0:00:00] Accuracy: White
= 74%, Black = 78%. . Accuracy: White = 76%, Black = 79%.} 1/2-1/2

[Event "89_| Campeonato Brasileiro 2023"]
[Site "Recife"]
[Date "2023.12.17"]
[Round "6.2"]
[White "Mekhitarian, Krikor Sevag"]
[Black "Molina, Roberto Junio Brito"]
[Result "1/2-1/2"]
[ECO "D35"]
[WhiteElo "2559"]
[BlackElo "2381"]
[PlyCount "47"]
[EventDate "2023.??.??"]
[EventCountry "BRA"]
[TimeControl "90+30"]
[WhiteClock "0:24:21"]
[BlackClock "1:01:00"]

{[%evp 14,47,39,39,57,51,57,40,77,44,46,47,54,32,26,13,14,0,0,0,0,0,0,0,0,-17,
0,0,0,0,1,-18,-16,-25,-23,-25]} 1. d4 {[%emt 0:00:00]} d5 {[%emt 0:00:00]} 2.
c4 {[%emt 0:00:00]} e6 {[%emt 0:00:00]} 3. Nc3 {[%emt 0:00:00]} Nf6 {[%emt 0:
00:00]} 4. cxd5 {[%emt 0:00:00]} exd5 {[%emt 0:00:00]} 5. Bg5 {[%emt 0:00:00]}
c6 {[%emt 0:00:00]} 6. e3 {[%emt 0:00:00]} Be7 {[%emt 0:00:00]} 7. Bd3 {
[%emt 0:00:00]} h6 {[%emt 0:00:00]} 8. Bf4 {[%emt 0:00:00]} Nbd7 {[%emt 0:00:
00] D35: Queen's Gambit Declined: Exchange Variation.} 9. h3 {[%emt 0:00:00]}
Nb6 {[%emt 0:00:00]} 10. Nge2 {[%emt 0:00:00]} (10. Nf3 {with more
complications.} Be6 11. O-O O-O 12. Qe2 Nc4 13. Ne5) (10. Nf3 {is more complex.
} Be6 11. Qe2 Nc4 12. O-O O-O 13. Ne5) (10. Nf3 {keeps more tension.} O-O 11.
O-O Be6 12. Ne5 c5 13. dxc5 Bxc5 14. Rc1) 10... Bd6 {[%emt 0:00:00] White is
slightly better.White is slightly better.White is slightly better.} 11. Qc2 {
[%emt 0:00:00]} Bxf4 {[%emt 0:00:00]} 12. Nxf4 {[%emt 0:00:00]} Qd6 $146 {
[%emt 0:00:00]} ({Predecessor:} 12... Qe7 13. O-O-O g5 14. Nfe2 Bd7 15. Kb1
O-O-O 16. Ka1 Kb8 17. Rc1 Ne8 18. h4 Nd6 {1-0 (44) Dubkov,A (2332)-Hebbering,T
(2230) Germany 2022}) ({Predecessor:} 12... Qe7 13. O-O-O g5 14. Nfe2 Bd7 15.
Kb1 O-O-O 16. Ka1 Kb8 17. Rc1 Ne8 18. h4 Nd6 {1-0 (44) Dubkov,A (2332)
-Hebbering,T (2230) Germany 2022}) 13. O-O-O {[%emt 0:00:00]} Bd7 {[%emt 0:00:
00]} 14. Kb1 {[%emt 0:00:00] The position is equal.} O-O-O {[%emt 0:00:00]} 15.
Rc1 {[%emt 0:00:00]} Kb8 {[%emt 0:00:00]} 16. Na4 {[%emt 0:00:00]} Nxa4 {
[%emt 0:00:00]} 17. Qxa4 {[%emt 0:00:00]} Rc8 {[%emt 0:00:00]} (17... g5 $5 18.
Ne2 $8 Ne4 19. Bxe4 $1 dxe4 $11) (17... g5 $5 18. Ne2 $8 Ne4 19. Bxe4 dxe4 $11)
18. Rc3 {[%emt 0:00:00]} Rc7 {[%emt 0:00:00]} 19. Ne2 {[%emt 0:00:00]} (19. h4
{feels hotter.} g6 20. Qc2 Re8 21. Ka1 Ne4 22. Bxe4 $1 dxe4 23. Qb3) (19. Qd1 {
is interesting.} Ne4 20. Bxe4 dxe4 21. Qc2 g6 22. Ka1) (19. Ka1 {is more
complex.} Re8 20. Qc2 Qe7 21. a3 Rec8 22. Rc1) 19... Rhc8 {[%emt 0:00:00]} (
19... h5 {keeps more tension.} 20. Rc2 Ne8 21. Nc3 Qf6 22. Re1 Nd6) (19... h5 {
feels hotter.} 20. Ra3 b6 $1 21. Qc2 Re8 22. Rb3 Ne4) (19... h5 {seems wilder.}
20. Rc2 h4 21. Nc3 Ne8 22. Re1 Qe7) 20. Qa3 {[%emt 0:00:00]} Qxa3 {[%emt 0:00:
00]} 21. Rxa3 {[%emt 0:00:00]} Ne8 {[%emt 0:00:00]} 22. g4 {[%emt 0:00:00]} Nd6
{[%emt 0:00:00]} 23. Ng3 {[%emt 0:00:00]} Rf8 {[%emt 0:00:00]} 24. Rc3 {
[%emt 0:00:00] Accuracy: White = 52%, Black = 81%. . Accuracy: White = 59%,
Black = 94%. . Accuracy: White = 53%, Black = 82%.} 1/2-1/2